bitfinex/quotes_SOLUSD_20240711
["timestamp","ask_amount","ask_price","bid_price","bid_amount"]
[1720696731593,18.376,143.76,143.71,35.7736]
[1720696732104,11.42,143.76,143.71,35.7736]
[1720696732318,11.42,143.76,143.72,6.9579]
[1720696734487,11.42,143.76,143.71,35.7737]
[1720696734689,18.3756,143.77,143.71,35.7737]
[1720696735419,18.3756,143.77,143.72,6.9578]
[1720696735420,11.42,143.77,143.72,6.9578]
[1720696735597,21.14257175,143.78,143.73,18.3774]
[1720696736622,11.42,143.77,143.73,6.9574]
[1720696739498,11.42,143.77,143.73,8.34547741]
[1720696740226,18.3755,143.77,143.73,1.38807741]
[1720696740919,18.3756,143.77,143.73,1.38807741]
[1720696741126,15.8367,143.79,143.73,8.34527741]
[1720696741327,11.42,143.78,143.73,19.76537741]
[1720696741497,22.7916,143.79,143.73,19.76537741]
[1720696741703,11.42,143.78,143.73,19.76537741]
[1720696741904,11.42,143.78,143.74,6.957]
[1720696742116,11.42,143.78,143.75,1.38986257]
[1720696742315,11.42,143.78,143.74,1.38986257]
[1720696742508,18.3751,143.78,143.73,11.42]
[1720696742826,6.9556,143.77,143.72,18.3778]
[1720696743003,6.9556,143.77,143.73,45.0]
[1720696743200,6.9556,143.77,143.72,6.9578]
[1720696743409,11.42,143.78,143.73,6.9573]
[1720696743607,18.3753,143.78,143.72,19.76910488]
[1720696743908,18.3756,143.77,143.72,19.76910488]
[1720696744227,18.3756,143.77,143.72,18.3778]
[1720696744406,18.3756,143.77,143.72,6.9578]
[1720696744609,18.3762,143.76,143.71,25.74067574]
[1720696744822,18.3762,143.76,143.71,24.3538]
[1720696745032,18.3762,143.76,143.71,37.16048299]
[1720696747317,18.3768,143.75,143.71,1.38668299]
[1720696747631,11.42,143.75,143.71,6.9584]
[1720696747929,11.42,143.75,143.71,8.34787645]
[1720696748526,18.3762,143.76,143.71,19.76787645]
[1720696749510,11.42,143.76,143.71,19.76787645]
[1720696751537,18.3761,143.76,143.71,19.76787645]
[1720696751724,18.3761,143.76,143.71,12.80947645]
[1720696753826,11.42,143.76,143.71,12.80947645]
[1720696754025,11.42,143.75,143.71,1.38947645]
[1720696754232,18.3766,143.75,143.7,45.0]
[1720696754531,18.3766,143.75,143.7,11.42]
[1720696754829,18.3766,143.75,143.7,18.3788]
[1720696755012,11.42,143.75,143.7,18.3788]
[1720696755829,11.42,143.74,143.69,24.3573]
[1720696756029,11.42,143.73,143.69,24.3573]
[1720696756235,11.42,143.74,143.7,6.9588]
[1720696756436,28.8085,143.78,143.68,13.3196]
[1720696756639,11.42,143.72,143.68,6.3597]
[1720696756940,11.42,143.73,143.69,6.9593]
[1720696757138,11.42,143.73,143.68,35.1785]
[1720696757316,11.42,143.76,143.71,11.42]
[1720696757506,18.5550238,143.79,143.72,11.42]
[1720696757710,11.42,143.77,143.73,6.9574]
[1720696758435,18.3757,143.77,143.72,11.42]
[1720696758624,6.9557,143.77,143.72,11.42]
[1720696758823,18.3757,143.77,143.72,11.42]
[1720696759640,18.3757,143.77,143.71,6.958]
[1720696759841,18.3757,143.77,143.72,11.42]
[1720696761138,18.3757,143.77,143.72,18.3779]
[1720696761733,18.3757,143.77,143.73,0.70880151]
[1720696762623,11.42,143.77,143.73,0.70880151]
[1720696762935,11.42,143.77,143.73,1.39127164]
[1720696763139,18.3752,143.78,143.74,1.39117484]
[1720696763318,6.9552,143.78,143.74,1.39117484]
[1720696763519,18.3752,143.78,143.74,1.39117484]
[1720696764240,18.3752,143.78,143.73,11.42]
[1720696764443,18.3752,143.78,143.74,1.39126186]
[1720696765243,6.9557,143.77,143.74,1.39126186]
[1720696766042,6.9562,143.76,143.72,12.81124053]
[1720696766244,18.3762,143.76,143.72,1.39124053]
[1720696767247,11.42,143.77,143.72,12.81124053]
[1720696767429,11.42,143.77,143.72,19.76914053]
[1720696767627,11.42,143.77,143.73,11.42]
[1720696768041,18.3756,143.77,143.73,11.42]
[1720696768238,18.3756,143.77,143.72,12.81124053]
[1720696768445,18.3756,143.77,143.72,11.42]
[1720696768651,11.42,143.76,143.71,19.7695413]
[1720696769025,18.3756,143.77,143.71,8.3495413]
[1720696769241,18.3756,143.77,143.72,11.42]
[1720696771651,11.42,143.76,143.71,18.3783]
[1720696775247,11.42,143.76,143.72,6.9578]
[1720696775439,11.42,143.76,143.7,17.5666]
[1720696775440,11.42,143.76,143.7,17.3966]
[1720696775642,35.9424238,143.79,143.7,17.3966]
[1720696775643,11.42,143.74,143.7,17.3966]
[1720696776051,18.5550238,143.79,143.72,6.9575]
[1720696776250,6.9554,143.78,143.73,6.9573]
[1720696776460,11.42,143.77,143.73,6.9573]
[1720696776857,11.42,143.77,143.72,18.3778]
[1720696777238,18.3756,143.77,143.72,18.3778]
[1720696777757,18.3756,143.77,143.72,11.42]
[1720696778275,6.9561,143.76,143.72,11.42]
[1720696779550,6.9561,143.76,143.71,18.3782]
[1720696779735,18.3761,143.76,143.71,19.01196526]
[1720696781236,18.3756,143.77,143.72,11.42]
[1720696781862,6.9556,143.77,143.73,0.66211884]
[1720696782058,18.3756,143.77,143.73,0.6619802]
[1720696782655,6.9551,143.78,143.73,11.42]
[1720696782838,18.3755,143.77,143.72,18.3778]
[1720696783033,18.3755,143.77,143.72,11.42]
[1720696783253,18.3761,143.76,143.71,18.3783]
[1720696783455,18.3761,143.76,143.72,45.17]
[1720696783759,18.3761,143.76,143.71,18.3783]
[1720696783937,18.3767,143.75,143.7,35.7754]
[1720696784347,18.3767,143.75,143.7,28.8166]
[1720696784546,18.3767,143.75,143.7,35.7755]
[1720696784867,11.42,143.75,143.71,6.9581]
[1720696785158,11.42,143.76,143.71,19.76595431]
[1720696785364,11.42,143.75,143.71,8.34595431]
[1720696785748,11.42,143.75,143.71,1.38785431]
[1720696785953,18.3766,143.75,143.71,1.38785431]
[1720696786544,18.3766,143.75,143.7,24.3554]
[1720696786765,6.9562,143.76,143.71,6.9583]
[1720696786969,11.42,143.75,143.71,6.9583]
[1720696787349,11.42,143.74,143.7,24.3554]
[1720696787551,18.377,143.74,143.7,17.3966]
[1720696787767,18.377,143.74,143.69,18.3793]
[1720696788568,6.957,143.74,143.69,18.3793]
[1720696788750,18.377,143.74,143.69,18.3793]
[1720696789650,11.42,143.74,143.69,18.3793]
[1720696790376,6.9566,143.75,143.69,18.3793]
[1720696790558,11.42,143.74,143.69,18.3793]
[1720696791977,18.3766,143.75,143.7,11.42]
[1720696792872,11.42,143.74,143.69,18.3793]
[1720696793276,18.3771,143.74,143.69,18.3793]
[1720696793443,18.3771,143.74,143.68,13.3192]
[1720696793649,11.42,143.73,143.68,24.7392]
[1720696794654,18.3771,143.74,143.69,18.3794]
[1720696795055,6.9567,143.75,143.69,18.3794]
[1720696795255,11.42,143.74,143.69,18.3794]
[1720696795468,11.42,143.74,143.7,6.9589]
[1720696795663,11.42,143.74,143.7,18.3789]
[1720696796756,11.42,143.74,143.7,11.42]
[1720696797874,6.956,143.76,143.71,18.5483]
[1720696798052,11.42,143.75,143.71,11.42]
[1720696798254,18.3766,143.75,143.7,18.3787]
[1720696798570,11.42,143.74,143.69,35.7775]
[1720696799083,6.9566,143.75,143.7,6.9588]
[1720696799279,11.42,143.74,143.7,6.9588]
[1720696799574,11.42,143.74,143.69,24.3576]
[1720696799575,18.3772,143.74,143.69,24.3576]
[1720696799753,18.3772,143.74,143.69,35.7776]
[1720696800664,6.9566,143.75,143.7,6.9589]
[1720696800856,6.9566,143.75,143.7,18.3789]
[1720696801364,18.3762,143.76,143.7,6.9589]
[1720696801547,18.3762,143.76,143.71,11.42]
[1720696801751,6.9567,143.75,143.71,11.42]
[1720696801968,2.79078113,143.78,143.68,6.5297]
[1720696802154,11.42,143.73,143.69,56.59]
[1720696802358,6.9566,143.75,143.69,56.59]
[1720696802556,18.3766,143.75,143.7,11.42]
[1720696803175,18.3766,143.75,143.71,0.91182809]
[1720696803387,18.3766,143.75,143.7,11.42]
[1720696803887,36.03300889,143.79,143.73,11.42]
[1720696803888,6.9552,143.78,143.73,11.42]
[1720696804180,18.3752,143.78,143.73,12.40375475]
[1720696804759,6.9556,143.77,143.73,12.40375475]
[1720696806950,6.9556,143.77,143.73,11.42]
[1720696807261,6.9561,143.76,143.72,12.40375475]
[1720696807773,6.9569,143.75,143.72,0.98375475]
[1720696808371,6.9569,143.75,143.71,12.57375475]
[1720696808773,18.376,143.76,143.72,11.42]
[1720696809076,18.376,143.76,143.72,12.40361789]
[1720696809656,6.9556,143.77,143.72,12.40361789]
[1720696809960,18.3756,143.77,143.72,19.36151789]
[1720696810156,18.3756,143.77,143.73,1.39128502]
[1720696810674,6.9562,143.76,143.72,11.42]
[1720696810871,18.3762,143.76,143.72,11.42]
[1720696811371,6.9562,143.76,143.72,11.42]
[1720696812086,6.9562,143.76,143.73,0.65933126]
[1720696812262,6.9562,143.76,143.73,1.14774329]
[1720696818378,18.3756,143.77,143.73,1.14774329]
[1720696821196,6.9556,143.77,143.73,1.14774329]
[1720696821384,18.3756,143.77,143.73,1.14774329]
[1720696822284,6.956,143.76,143.72,11.42]
[1720696823897,6.9552,143.78,143.74,11.42]
[1720696824086,21.18370889,143.79,143.74,10.7858]
[1720696824475,21.18370889,143.79,143.74,11.29871083]
[1720696824673,15.8108,143.82,143.74,24.43241083]
[1720696824987,18.3742,143.8,143.74,31.38921083]
[1720696825380,18.3742,143.8,143.75,6.9564]
[1720696825587,6.9542,143.8,143.76,11.93283953]
[1720696826096,11.42,143.8,143.75,11.42]
[1720696826276,11.42,143.8,143.74,23.9195]
[1720696826479,11.42,143.8,143.75,11.42]
[1720696826696,6.9558,143.77,143.71,24.3536]
[1720696826997,11.42,143.74,143.7,6.6346]
[1720696827172,11.42,143.73,143.7,6.6346]
[1720696828180,11.42,143.73,143.71,1.39154261]
[1720696828387,10.92,143.73,143.71,8.34984261]
[1720696828594,11.42,143.74,143.71,8.34984261]
[1720696828994,11.42,143.75,143.71,8.34984261]
[1720696829503,11.42,143.75,143.72,6.9579]
[1720696829693,11.42,143.75,143.71,6.9583]
[1720696829895,18.3765,143.75,143.7,30.9905]
[1720696830076,6.957,143.74,143.7,6.6346]
[1720696830271,11.42,143.73,143.7,6.6346]
[1720696830774,6.9566,143.75,143.7,6.6346]
[1720696830980,11.42,143.73,143.7,6.6346]
[1720696831202,6.9566,143.75,143.7,6.6346]
[1720696831501,11.42,143.73,143.7,6.6346]
[1720696831896,11.42,143.73,143.7,13.5934]
[1720696832586,11.42,143.73,143.71,6.9584]
[1720696832974,10.42,143.73,143.71,6.9584]
[1720696833175,11.42,143.74,143.71,6.9584]
[1720696833601,11.42,143.74,143.7,13.5933]
[1720696833803,18.377,143.74,143.7,6.6346]
[1720696834099,11.42,143.72,143.7,6.6346]
[1720696834299,11.42,143.72,143.69,40.5091]
[1720696834802,11.42,143.72,143.69,24.3574]
[1720696835208,11.42,143.71,143.69,17.3981]
[1720696835571,11.42,143.7,143.67,14.17435027]
[1720696835771,11.42,143.7,143.67,6.9603]
[1720696837100,11.42,143.7,143.68,6.9597]
[1720696838799,6.9579,143.73,143.68,6.9597]
[1720696838800,11.42,143.71,143.68,6.9597]
[1720696839482,11.42,143.71,143.67,6.9603]
[1720696839683,6.958,143.72,143.67,6.9603]
[1720696839887,11.42,143.7,143.66,46.6202]
[1720696840285,11.42,143.69,143.66,39.6595]
[1720696840484,11.42,143.67,143.63,26.1748602]
[1720696840801,11.42,143.66,143.63,6.0032]
[1720696841104,6.96,143.68,143.63,6.0032]
[1720696841302,11.42,143.66,143.63,6.0032]
[1720696841992,11.42,143.66,143.63,12.9652]
[1720696842194,11.42,143.65,143.62,40.8704]
[1720696847000,11.42,143.65,143.62,33.908]
[1720696847399,11.42,143.66,143.62,40.8704]
[1720696849685,2.8100242,143.71,143.63,6.9623]
[1720696849887,11.42,143.67,143.63,6.9623]
[1720696850289,11.42,143.66,143.62,40.8707]
[1720696851203,6.9604,143.67,143.62,40.8707]
[1720696851403,11.42,143.66,143.62,40.8707]
[1720696853121,11.42,143.65,143.62,33.908]
[1720696853486,11.42,143.64,143.59,45.93391221]
[1720696853685,11.42,143.64,143.6,45.0]
[1720696854413,11.42,143.62,143.59,6.2028]
[1720696854598,11.42,143.61,143.59,6.2028]
[1720696854802,6.963,143.62,143.59,6.2028]
[1720696855113,11.42,143.63,143.59,13.1669]
[1720696855311,6.9614,143.65,143.59,13.1669]
[1720696855484,6.9609,143.66,143.61,6.9632]
[1720696855685,11.42,143.65,143.61,6.9632]
[1720696856090,6.9609,143.66,143.61,6.9632]
[1720696856296,11.42,143.65,143.61,18.3832]
[1720696856498,6.9605,143.67,143.61,18.3832]
[1720696856499,11.42,143.66,143.62,53.35486418]
[1720696857110,11.42,143.66,143.62,46.39226418]
[1720696857909,11.42,143.66,143.62,45.0]
[1720696858610,11.42,143.66,143.62,51.9626]
[1720696858801,6.9599,143.68,143.63,6.9622]
[1720696859009,11.42,143.66,143.63,6.9622]
[1720696859389,11.42,143.67,143.63,6.9622]
[1720696859700,11.42,143.67,143.64,1.39222064]
[1720696860409,18.3805,143.67,143.62,80.7888]
[1720696860611,11.42,143.66,143.62,69.3688]
[1720696861205,6.9605,143.67,143.62,69.3688]
[1720696861395,11.42,143.66,143.62,69.3688]
[1720696861807,17.77294563,143.72,143.63,11.42]
[1720696861997,6.9585,143.71,143.65,18.3809]
[1720696862200,6.958,143.72,143.67,18.3803]
[1720696862402,18.378,143.72,143.67,19.77211487]
[1720696862610,18.378,143.72,143.68,1.39171835]
[1720696863500,6.9585,143.71,143.68,1.39171835]
[1720696863903,18.3785,143.71,143.68,1.39171835]
[1720696864708,11.42,143.71,143.68,1.39171835]
[1720696864900,6.958,143.72,143.68,12.81171835]
[1720696865422,6.9585,143.71,143.67,1.39175035]
[1720696865599,18.3785,143.71,143.67,1.39175035]
[1720696865797,18.3789,143.7,143.65,19.77273928]
[1720696866000,18.3789,143.7,143.65,18.3809]
[1720696866224,6.9589,143.7,143.65,18.3809]
[1720696866513,18.3789,143.7,143.65,18.3809]
[1720696866701,18.3794,143.69,143.64,17.8129]
[1720696867417,18.3799,143.68,143.64,6.3929]
[1720696868725,11.42,143.68,143.64,6.3929]
[1720696869033,18.3799,143.68,143.64,6.3929]
[1720696869320,6.9595,143.69,143.64,13.3546]
[1720696869496,11.42,143.68,143.64,13.3546]
[1720696869703,11.42,143.69,143.65,6.9611]
[1720696869900,18.379,143.7,143.65,18.3811]
[1720696870523,18.379,143.7,143.65,11.42]
[1720696871202,6.959,143.7,143.65,11.42]
[1720696871530,11.42,143.69,143.65,11.42]
[1720696872025,18.3794,143.69,143.65,11.42]
[1720696872523,18.3794,143.69,143.64,24.7745]
[1720696872727,18.3794,143.69,143.64,17.8129]
[1720696872912,11.42,143.69,143.64,24.7745]
[1720696874033,11.42,143.69,143.64,13.3545]
[1720696874320,18.3795,143.69,143.64,24.7745]
[1720696875030,11.42,143.69,143.64,24.7745]
[1720696875319,18.3795,143.69,143.64,24.7745]
[1720696875700,18.3795,143.69,143.64,19.20496853]
[1720696875902,18.3795,143.69,143.65,1.39207158]
[1720696876218,6.9589,143.71,143.65,8.35327158]
[1720696876410,11.42,143.7,143.65,19.77327158]
[1720696876612,18.379,143.7,143.65,19.77327158]
[1720696877012,18.3795,143.69,143.65,1.39207158]
[1720696877619,11.42,143.69,143.65,1.39207158]
[1720696877810,11.42,143.7,143.65,57.81207158]
[1720696878012,20.14211087,143.76,143.67,11.42]
[1720696878213,18.378,143.72,143.68,1.3917541]
[1720696879238,18.378,143.72,143.68,12.8117541]
[1720696879526,6.9578,143.73,143.68,12.8117541]
[1720696879735,6.9578,143.73,143.69,1.39165723]
[1720696879910,18.3778,143.73,143.69,1.39165723]
[1720696880113,6.9578,143.73,143.69,1.39165723]
[1720696880414,18.3778,143.73,143.69,1.39165723]
[1720696881029,18.3778,143.73,143.67,16.649]
[1720696881030,6.9581,143.72,143.67,23.6092]
[1720696881320,6.9581,143.72,143.68,11.42]
[1720696883706,6.9581,143.72,143.68,12.8098819]
[1720696884326,11.42,143.73,143.68,19.7694819]
[1720696884524,18.377,143.74,143.69,6.9593]
[1720696884724,6.957,143.74,143.7,1.38968845]
[1720696884923,6.957,143.74,143.7,12.80968845]
[1720696885632,6.957,143.74,143.71,1.38960113]
[1720696885941,18.3766,143.75,143.71,1.38960113]
[1720696886243,6.9566,143.75,143.71,1.38960113]
[1720696886414,18.3766,143.75,143.71,1.38960113]
[1720696886613,6.9566,143.75,143.71,12.80960113]
[1720696886813,6.957,143.74,143.71,11.42]
[1720696887731,6.957,143.74,143.7,12.80960113]
[1720696887936,6.957,143.74,143.71,1.3895046]
[1720696892205,6.9575,143.73,143.71,1.3895046]
[1720696892619,6.9579,143.72,143.7,1.3895046]
[1720696892835,6.9575,143.73,143.7,1.3895046]
[1720696893153,6.9575,143.73,143.71,1.38940791]
[1720696893537,6.9575,143.73,143.7,1.38940791]
[1720696893746,6.9575,143.73,143.71,1.38931122]
[1720696894451,6.9575,143.73,143.7,1.38931122]
[1720696895145,18.3771,143.74,143.71,1.39012478]
[1720696895513,6.9571,143.74,143.71,1.39012478]
[1720696895828,6.9565,143.76,143.71,1.39012478]
[1720696896134,52.1582,143.8,143.72,11.42]
[1720696896135,16.0502,143.8,143.72,11.42]
[1720696896341,11.42,143.77,143.73,1.39124952]
[1720696896521,18.3755,143.77,143.74,1.39115273]
[1720696896722,11.42,143.77,143.74,1.39115273]
[1720696897536,18.3756,143.77,143.74,1.39115273]
[1720696897835,18.3756,143.77,143.73,18.78445289]
[1720696898325,18.3756,143.77,143.74,1.3910561]
[1720696898633,11.42,143.77,143.74,1.3910561]
[1720696899620,18.3756,143.77,143.74,1.3910561]
[1720696900233,16.0502,143.8,143.74,1.3910561]
[1720696900437,11.42,143.78,143.74,1.3910561]
[1720696900617,6.9547,143.79,143.74,19.7679561]
[1720696900618,18.3747,143.79,143.74,19.7679561]
[1720696900818,18.3747,143.79,143.75,11.42]
[1720696901024,18.6776382,143.79,143.76,1.39086279]
[1720696901235,7.2576382,143.79,143.75,12.81086279]
[1720696901418,18.6776382,143.79,143.75,1.39086279]
[1720696901625,18.375,143.78,143.75,1.39086279]
[1720696902825,18.3757,143.77,143.73,17.3933]
[1720696903040,11.42,143.77,143.73,17.3933]
[1720696903547,6.956,143.76,143.72,28.78817059]
[1720696903840,18.376,143.76,143.72,17.36817059]
[1720696904339,11.42,143.76,143.72,17.36817059]
[1720696904546,11.42,143.76,143.72,24.32597059]
[1720696904842,11.42,143.75,143.71,11.42]
[1720696905140,11.42,143.74,143.71,1.28179559]
[1720696905318,6.9552,143.78,143.72,18.3776]
[1720696905524,11.42,143.77,143.73,1.30289819]
[1720696905724,11.42,143.77,143.73,8.26029819]
[1720696906145,6.9552,143.78,143.73,8.26029819]
[1720696906441,11.42,143.77,143.73,8.26029819]
[1720696907043,6.9555,143.77,143.73,1.30289819]
[1720696907242,18.3755,143.77,143.73,1.30289819]
[1720696907549,11.42,143.76,143.71,11.42]
[1720696908144,11.42,143.75,143.7,28.8168]
[1720696909337,18.3768,143.75,143.7,24.3556]
[1720696909542,18.3768,143.75,143.7,28.8168]
[1720696909839,18.3768,143.75,143.7,35.7756]
[1720696910239,6.9568,143.75,143.7,17.3968]
[1720696910442,11.42,143.74,143.7,17.3968]
[1720696910848,11.42,143.74,143.71,1.30996439]
[1720696911339,18.3771,143.74,143.7,18.70676439]
[1720696911963,11.42,143.74,143.71,1.30987323]
[1720696912928,6.956,143.77,143.72,6.9579]
[1720696913139,11.42,143.76,143.73,1.39129697]
[1720696913445,18.3761,143.76,143.71,18.3784]
[1720696914631,11.42,143.75,143.71,18.3784]
[1720696915150,11.42,143.75,143.72,1.36973445]
[1720696916048,6.9561,143.76,143.72,1.36973445]
[1720696916227,11.42,143.75,143.72,1.36973445]
[1720696916651,18.3765,143.75,143.72,1.36973445]
[1720696917927,11.42,143.75,143.72,1.36973445]
[1720696918135,18.3761,143.76,143.72,1.36973445]
[1720696920749,6.9556,143.77,143.72,12.78973445]
[1720696921048,6.9556,143.77,143.73,11.42]
[1720696921354,6.9556,143.77,143.74,1.36965132]
[1720696921851,6.9552,143.78,143.74,12.78965132]
[1720696922430,11.7229382,143.79,143.74,19.39865132]
[1720696922652,7.2575382,143.79,143.74,26.35555132]
[1720696922847,18.6775382,143.79,143.74,19.39865132]
[1720696923147,18.6775382,143.79,143.74,34.81475132]
[1720696923652,18.6775382,143.79,143.74,23.39475132]
[1720696923834,18.6775382,143.79,143.75,11.42]
[1720696924032,18.6775382,143.79,143.76,1.36951627]
[1720696924247,6.9551,143.78,143.76,1.36951627]
[1720696925257,7.2575382,143.79,143.76,1.36951627]
[1720696925454,18.6775382,143.79,143.76,1.36951627]
[1720696925953,7.2575382,143.79,143.77,1.37385873]
[1720696926459,7.2575382,143.79,143.75,12.79586557]
[1720696926634,0.3029382,143.79,143.76,11.42]
[1720696926946,0.3029382,143.79,143.75,12.79586557]
[1720696928460,0.3029382,143.79,143.73,1.37586557]
[1720696928638,11.42,143.76,143.72,17.3944]
[1720696928838,11.42,143.76,143.71,118.3783]
[1720696928839,18.3762,143.76,143.71,100.0]
[1720696929047,18.3762,143.76,143.72,30.0]
[1720696929232,11.42,143.76,143.72,30.0]
[1720696929433,18.3761,143.76,143.72,30.0]
[1720696930058,11.42,143.76,143.72,6.9579]
[1720696930346,11.42,143.76,143.72,18.3779]
[1720696930759,11.42,143.76,143.72,11.42]
[1720696931169,6.9557,143.77,143.72,11.42]
[1720696931461,18.3761,143.76,143.71,18.3783]
[1720696931859,11.42,143.76,143.71,18.3783]
[1720696932063,11.42,143.76,143.72,6.9579]
[1720696932369,11.42,143.76,143.72,18.3779]
[1720696933074,18.376,143.76,143.71,35.7739]
[1720696933358,18.3766,143.75,143.71,1.38957871]
[1720696935063,6.9571,143.74,143.7,34.98727942]
[1720696935251,18.3771,143.74,143.7,23.56727942]
[1720696935566,11.42,143.74,143.7,23.56727942]
[1720696935871,11.42,143.74,143.71,1.38948311]
[1720696936470,18.377,143.74,143.71,1.38948311]
[1720696936646,18.377,143.74,143.7,6.3515]
[1720696937256,6.9566,143.75,143.7,13.3103]
[1720696937454,11.42,143.74,143.7,13.3103]
[1720696938177,11.42,143.74,143.7,6.3515]
[1720696938473,11.42,143.73,143.7,13.3104]
[1720696938654,11.42,143.74,143.7,13.3104]
[1720696939159,11.42,143.74,143.7,6.9589]
[1720696939665,11.42,143.73,143.7,6.9589]
[1720696940642,11.42,143.73,143.68,24.3585]
[1720696940845,11.42,143.73,143.68,28.8189]
[1720696941043,11.42,143.72,143.68,17.3989]
[1720696941461,11.42,143.71,143.67,6.0274]
[1720696941646,11.42,143.7,143.67,6.0274]
[1720696941987,11.42,143.7,143.67,12.9876]
[1720696943056,11.42,143.71,143.67,12.9876]
[1720696943555,11.42,143.71,143.68,6.9598]
[1720696943758,11.42,143.72,143.68,6.9598]
[1720696944462,11.42,143.71,143.68,6.9598]
[1720696945181,11.42,143.71,143.67,6.0274]
[1720696945870,11.42,143.7,143.65,24.3636]
[1720696946078,11.42,143.69,143.65,24.3636]
[1720696948383,0.17,143.72,143.65,17.4026]
[1720696948588,11.42,143.69,143.66,6.9607]
[1720696948874,11.42,143.7,143.66,6.9607]
[1720696949270,11.42,143.69,143.66,6.9607]
[1720696950178,6.9584,143.71,143.66,6.9607]
[1720696950358,11.42,143.7,143.66,6.9607]
[1720696951285,11.42,143.68,143.65,24.3638]
[1720696951455,11.42,143.68,143.65,17.4026]
[1720696951656,11.42,143.67,143.65,17.4026]
[1720696951870,11.42,143.67,143.63,6.4181]
[1720696952202,11.42,143.66,143.63,6.4181]
[1720696952558,11.42,143.65,143.62,15.3661]
[1720696952775,11.42,143.65,143.61,6.9632]
[1720696953074,11.42,143.64,143.6,18.3837]
[1720696953281,11.42,143.64,143.6,6.9637]
[1720696955573,6.9609,143.66,143.61,6.9632]
[1720696955767,11.42,143.65,143.61,6.9632]
[1720696956186,6.9609,143.66,143.61,6.9632]
[1720696956383,11.42,143.65,143.61,6.9632]
[1720696956860,11.42,143.66,143.61,6.9632]
[1720696957063,11.42,143.66,143.61,18.3832]
[1720696957280,11.42,143.66,143.62,6.9627]
[1720696957489,18.3809,143.66,143.61,18.3832]
[1720696957674,18.3809,143.66,143.61,6.9632]
[1720696957868,18.3809,143.66,143.61,18.3832]
[1720696958070,6.9605,143.67,143.61,18.3832]
[1720696958272,11.42,143.66,143.61,18.3832]
[1720696958470,11.42,143.66,143.62,1.39226538]
[1720696958872,6.9605,143.67,143.62,1.39226538]
[1720696959173,11.42,143.66,143.62,1.39226538]
[1720696959376,11.42,143.65,143.61,6.9632]
[1720696960765,18.381,143.66,143.61,6.9632]
[1720696961190,6.961,143.66,143.61,6.9632]
[1720696961489,11.42,143.66,143.61,6.9632]
[1720696961784,18.3799,143.68,143.63,18.3821]
[1720696962175,6.9604,143.67,143.63,11.42]
[1720696962689,18.3804,143.67,143.63,11.42]
[1720696963489,18.3804,143.67,143.62,93.5527]
[1720696964293,11.42,143.67,143.62,93.5527]
[1720696964583,11.42,143.67,143.63,6.9621]
[1720696964776,6.96,143.68,143.63,18.3821]
[1720696964977,18.38,143.68,143.63,18.3821]
[1720696970198,6.9606,143.67,143.61,35.7907]
[1720696970505,18.3806,143.67,143.62,11.42]
[1720696970702,18.3806,143.67,143.61,35.7907]
[1720696970888,11.42,143.66,143.62,11.42]
[1720696971089,6.9606,143.67,143.62,11.42]
[1720696971399,11.42,143.66,143.62,11.42]
[1720696971797,11.42,143.66,143.61,35.7907]
[1720696972705,11.42,143.66,143.62,6.9627]